[Event "Titled Tuesday Blitz June 21 Early 2022"]
[White "Halkias, Stelios"]
[Black "Karttunen, Mika"]
[WhiteFideId "4201809"]
[BlackFideId "502081"]
[WhiteElo "2453"]
[BlackElo "2343"]
[Result "0-1"]
[Round "09"]
[TimeControl "180+1"]
[Date "2022.06.21"]
[WhiteClock "0:00:11"]
[BlackClock "0:00:08"]

1. Nf3 {[%clk 0:03:00]}  Nf6 {[%clk 0:02:59]} 2. c4 {[%clk 0:02:58]}  e6 {[%clk 0:02:58]} 3. g3 {[%clk 0:02:57]}  d5 {[%clk 0:02:58]} 4. d4 {[%clk 0:02:56]}  Bb4+ {[%clk 0:02:56]} 5. Nbd2 {[%clk 0:02:56]}  dxc4 {[%clk 0:02:53]} 6. Bg2 {[%clk 0:02:56]}  b5 {[%clk 0:02:49]} 7. a4 {[%clk 0:02:51]}  c6 {[%clk 0:02:43]} 8. O-O {[%clk 0:02:48]}  O-O {[%clk 0:02:36]} 9. axb5 {[%clk 0:02:33]}  cxb5 {[%clk 0:02:36]} 10. Ng5 {[%clk 0:02:33]}  Nd5 {[%clk 0:02:34]} 11. e4 {[%clk 0:02:33]}  Nc7 {[%clk 0:02:34]} 12. e5 {[%clk 0:02:21]}  Qxg5 {[%clk 0:02:25]} 13. Ne4 {[%clk 0:02:20]}  Qd8 {[%clk 0:02:20]} 14. Qc2 {[%clk 0:01:54]}  Be7 {[%clk 0:02:01]} 15. Nd6 {[%clk 0:01:38]}  Nd5 {[%clk 0:01:53]} 16. Nxb5 {[%clk 0:01:31]}  Nc6 {[%clk 0:01:51]} 17. Qxc4 {[%clk 0:01:29]}  Bb7 {[%clk 0:01:45]} 18. Bd2 {[%clk 0:01:29]}  a6 {[%clk 0:01:39]} 19. Nc3 {[%clk 0:01:27]}  Ncb4 {[%clk 0:01:27]} 20. Ne4 {[%clk 0:01:22]}  a5 {[%clk 0:01:20]} 21. h4 {[%clk 0:01:19]}  Ba6 {[%clk 0:01:19]} 22. Qb3 {[%clk 0:01:19]}  Bxf1 {[%clk 0:01:18]} 23. Rxf1 {[%clk 0:01:19]}  Qb6 {[%clk 0:01:13]} 24. Bc3 {[%clk 0:01:10]}  Rfc8 {[%clk 0:01:07]} 25. Qd1 {[%clk 0:01:10]}  Nxc3 {[%clk 0:01:00]} 26. bxc3 {[%clk 0:01:10]}  Nd5 {[%clk 0:01:00]} 27. Qg4 {[%clk 0:01:08]}  Kh8 {[%clk 0:00:54]} 28. Qf3 {[%clk 0:01:08]}  f5 {[%clk 0:00:46]} 29. exf6 {[%clk 0:01:07]}  gxf6 {[%clk 0:00:45]} 30. Re1 {[%clk 0:00:48]}  a4 {[%clk 0:00:42]} 31. Qh5 {[%clk 0:00:21]}  a3 {[%clk 0:00:35]} 32. c4 {[%clk 0:00:20]}  a2 {[%clk 0:00:34]} 33. cxd5 {[%clk 0:00:19]}  a1=Q {[%clk 0:00:31]} 34. Rxa1 {[%clk 0:00:19]}  Rxa1+ {[%clk 0:00:31]} 35. Kh2 {[%clk 0:00:19]}  exd5 {[%clk 0:00:27]} 36. Qf7 {[%clk 0:00:19]}  Qxd4 {[%clk 0:00:15]} 37. Qxe7 {[%clk 0:00:16]}  Qe5 {[%clk 0:00:15]} 38. Qd7 {[%clk 0:00:15]}  Rf8 {[%clk 0:00:11]} 39. Nc5 {[%clk 0:00:14]}  Ra2 {[%clk 0:00:09]} 40. Ne6 {[%clk 0:00:13]}  Rg8 {[%clk 0:00:09]} 41. Kg1 {[%clk 0:00:12]}  Qe1+ {[%clk 0:00:08]} 42. Kh2 {[%clk 0:00:11]}  Qxf2 {[%clk 0:00:08]} 43. Kh3 {[%clk 0:00:11]}  Qxg2# {[%clk 0:00:08]} 0-1


[Site "https://www.chess.com"]

[Event "Titled Tuesday Blitz June 21 Early 2022"]
[White "Kosakowski, Jakub"]
[Black "Bortnyk, Olexandr"]
[WhiteFideId "1185080"]
[BlackFideId "14120828"]
[WhiteElo "2476"]
[BlackElo "2723"]
[Result "1-0"]
[Round "09"]
[TimeControl "180+1"]
[Date "2022.06.21"]
[WhiteClock "0:00:09"]
[BlackClock "0:00:03"]

1. e4 {[%clk 0:02:47]}  Nf6 {[%clk 0:02:59]} 2. Nc3 {[%clk 0:02:46]}  d6 {[%clk 0:02:58]} 3. d4 {[%clk 0:02:46]}  Nbd7 {[%clk 0:02:58]} 4. Nf3 {[%clk 0:02:45]}  e5 {[%clk 0:02:58]} 5. Bc4 {[%clk 0:02:45]}  Be7 {[%clk 0:02:58]} 6. a4 {[%clk 0:02:44]}  c6 {[%clk 0:02:58]} 7. O-O {[%clk 0:02:44]}  h6 {[%clk 0:02:59]} 8. h3 {[%clk 0:02:42]}  Qc7 {[%clk 0:02:59]} 9. Re1 {[%clk 0:02:42]}  g5 {[%clk 0:02:59]} 10. Be3 {[%clk 0:02:08]}  Nf8 {[%clk 0:02:55]} 11. dxe5 {[%clk 0:01:56]}  dxe5 {[%clk 0:02:56]} 12. Nxe5 {[%clk 0:01:51]}  Qxe5 {[%clk 0:02:54]} 13. Bd4 {[%clk 0:01:52]}  Qf4 {[%clk 0:02:20]} 14. e5 {[%clk 0:01:48]}  N6h7 {[%clk 0:02:14]} 15. e6 {[%clk 0:01:45]}  f6 {[%clk 0:02:10]} 16. Qh5+ {[%clk 0:01:44]}  Kd8 {[%clk 0:02:09]} 17. Rad1 {[%clk 0:01:45]}  Kc7 {[%clk 0:02:07]} 18. Qf7 {[%clk 0:01:44]}  Ng6 {[%clk 0:01:25]} 19. Qxg6 {[%clk 0:01:39]}  Nf8 {[%clk 0:01:20]} 20. Qf7 {[%clk 0:01:29]}  Rh7 {[%clk 0:01:19]} 21. Qe8 {[%clk 0:01:29]}  b5 {[%clk 0:00:56]} 22. Nxb5+ {[%clk 0:00:19]}  cxb5 {[%clk 0:00:53]} 23. Qxb5 {[%clk 0:00:20]}  Bb7 {[%clk 0:00:30]} 24. Bd5 {[%clk 0:00:16]}  Bxd5 {[%clk 0:00:20]} 25. Qa5+ {[%clk 0:00:15]}  Kc8 {[%clk 0:00:12]} 26. Qxd5 {[%clk 0:00:15]}  Qb8 {[%clk 0:00:10]} 27. Qc6+ {[%clk 0:00:15]}  Qc7 {[%clk 0:00:11]} 28. Qxa8+ {[%clk 0:00:15]}  Qb8 {[%clk 0:00:11]} 29. Qc6+ {[%clk 0:00:15]}  Qc7 {[%clk 0:00:12]} 30. Qe8+ {[%clk 0:00:15]}  Kb7 {[%clk 0:00:12]} 31. Qb5+ {[%clk 0:00:13]}  Ka8 {[%clk 0:00:10]} 32. Re3 {[%clk 0:00:13]}  Bd6 {[%clk 0:00:07]} 33. Rc3 {[%clk 0:00:13]}  Qb8 {[%clk 0:00:08]} 34. Qd5+ {[%clk 0:00:13]}  Rb7 {[%clk 0:00:08]} 35. Bxa7 {[%clk 0:00:12]}  Bh2+ {[%clk 0:00:05]} 36. Kh1 {[%clk 0:00:11]}  Qxa7 {[%clk 0:00:06]} 37. Kxh2 {[%clk 0:00:10]}  Qb8+ {[%clk 0:00:03]} 38. Kh1 {[%clk 0:00:10]}  Ng6 {[%clk 0:00:03]} 39. Qa5+ {[%clk 0:00:10]}  Ra7 {[%clk 0:00:03]} 40. Qd5+ {[%clk 0:00:09]}  Rb7 {[%clk 0:00:03]} 41. Rc5 {[%clk 0:00:07]}  Qe8 {[%clk 0:00:02]} 42. Ra5+ {[%clk 0:00:08]}  Kb8 {[%clk 0:00:02]} 43. Qd6+ {[%clk 0:00:08]}  Rc7 {[%clk 0:00:03]} 44. Rb5+ {[%clk 0:00:08]}  Kc8 {[%clk 0:00:03]} 45. Qa6+ {[%clk 0:00:09]} 1-0


[Site "https://www.chess.com"]

[Event "Titled Tuesday Blitz June 21 Early 2022"]
[White "Kosteniuk, Alexandra"]
[Black "Bortnyk, Mykola"]
[WhiteFideId "4128125"]
[BlackFideId "14120836"]
[WhiteElo "2469"]
[BlackElo "2582"]
[Result "0-1"]
[Round "09"]
[TimeControl "180+1"]
[Date "2022.06.21"]
[WhiteClock "0:00:02"]
[BlackClock "0:00:03"]

1. e4 {[%clk 0:03:00]}  Nf6 {[%clk 0:02:57]} 2. e5 {[%clk 0:02:58]}  Nd5 {[%clk 0:02:58]} 3. d4 {[%clk 0:02:58]}  d6 {[%clk 0:02:58]} 4. c4 {[%clk 0:02:58]}  Nb6 {[%clk 0:02:59]} 5. f4 {[%clk 0:02:58]}  dxe5 {[%clk 0:02:59]} 6. fxe5 {[%clk 0:02:57]}  Nc6 {[%clk 0:03:00]} 7. Be3 {[%clk 0:02:57]}  Bf5 {[%clk 0:03:00]} 8. Nc3 {[%clk 0:02:47]}  e6 {[%clk 0:03:00]} 9. Be2 {[%clk 0:02:40]}  Qd7 {[%clk 0:03:00]} 10. Nf3 {[%clk 0:02:38]}  O-O-O {[%clk 0:03:00]} 11. O-O {[%clk 0:02:31]}  Kb8 {[%clk 0:02:59]} 12. c5 {[%clk 0:02:26]}  Nd5 {[%clk 0:02:59]} 13. Nxd5 {[%clk 0:02:15]}  Qxd5 {[%clk 0:02:59]} 14. Qc1 {[%clk 0:02:15]}  f6 {[%clk 0:02:57]} 15. Bc4 {[%clk 0:02:04]}  Qe4 {[%clk 0:02:51]} 16. Re1 {[%clk 0:02:02]}  Qg4 {[%clk 0:02:34]} 17. h3 {[%clk 0:02:01]}  Qh5 {[%clk 0:02:30]} 18. Be2 {[%clk 0:01:44]}  Qf7 {[%clk 0:02:13]} 19. Qc3 {[%clk 0:01:42]}  Be4 {[%clk 0:02:11]} 20. b4 {[%clk 0:01:38]}  fxe5 {[%clk 0:02:10]} 21. dxe5 {[%clk 0:01:32]}  Qg6 {[%clk 0:01:58]} 22. b5 {[%clk 0:01:11]}  Ne7 {[%clk 0:01:58]} 23. b6 {[%clk 0:01:03]}  Nc6 {[%clk 0:01:24]} 24. bxc7+ {[%clk 0:00:47]}  Kxc7 {[%clk 0:01:24]} 25. Rad1 {[%clk 0:00:46]}  Be7 {[%clk 0:01:19]} 26. Rd6 {[%clk 0:00:45]}  Rhf8 {[%clk 0:01:15]} 27. Bf2 {[%clk 0:00:38]}  Bxd6 {[%clk 0:01:09]} 28. cxd6+ {[%clk 0:00:38]}  Kd7 {[%clk 0:01:07]} 29. Qb3 {[%clk 0:00:35]}  Rb8 {[%clk 0:01:01]} 30. Kh1 {[%clk 0:00:28]}  Bd5 {[%clk 0:01:01]} 31. Qe3 {[%clk 0:00:27]}  h6 {[%clk 0:00:57]} 32. Rd1 {[%clk 0:00:25]}  Qe4 {[%clk 0:00:56]} 33. Qd2 {[%clk 0:00:19]}  Nxe5 {[%clk 0:00:54]} 34. Bb5+ {[%clk 0:00:17]}  Nc6 {[%clk 0:00:50]} 35. Re1 {[%clk 0:00:15]}  Qf4 {[%clk 0:00:43]} 36. Ne5+ {[%clk 0:00:13]}  Kxd6 {[%clk 0:00:35]} 37. Be3 {[%clk 0:00:13]}  Qxe5 {[%clk 0:00:24]} 38. Bc5+ {[%clk 0:00:13]}  Kxc5 {[%clk 0:00:25]} 39. Rxe5 {[%clk 0:00:13]}  Nxe5 {[%clk 0:00:25]} 40. Be2 {[%clk 0:00:12]}  Nc6 {[%clk 0:00:23]} 41. Qc3+ {[%clk 0:00:12]}  Kd6 {[%clk 0:00:23]} 42. Qg3+ {[%clk 0:00:12]}  e5 {[%clk 0:00:17]} 43. Qxg7 {[%clk 0:00:11]}  Rg8 {[%clk 0:00:11]} 44. Qxh6+ {[%clk 0:00:12]}  Kc7 {[%clk 0:00:10]} 45. Qh7+ {[%clk 0:00:10]}  Kd6 {[%clk 0:00:06]} 46. Qh6+ {[%clk 0:00:10]}  Be6 {[%clk 0:00:06]} 47. Qd2+ {[%clk 0:00:05]}  Nd4 {[%clk 0:00:06]} 48. Qb4+ {[%clk 0:00:05]}  Kd7 {[%clk 0:00:05]} 49. Qc5 {[%clk 0:00:04]}  Nc6 {[%clk 0:00:03]} 50. Bb5 {[%clk 0:00:03]}  a6 {[%clk 0:00:02]} 51. Bxc6+ {[%clk 0:00:03]}  bxc6 {[%clk 0:00:03]} 52. Qa7+ {[%clk 0:00:03]}  Kd6 {[%clk 0:00:03]} 53. Qxa6 {[%clk 0:00:02]}  Rb5 {[%clk 0:00:02]} 54. Qa3+ {[%clk 0:00:02]}  Rc5 {[%clk 0:00:03]} 55. Qb4 {[%clk 0:00:02]}  Bd5 {[%clk 0:00:03]} 0-1


[Site "https://www.chess.com"]

[Event "Titled Tuesday Blitz June 21 Early 2022"]
[White "Krallis, Christos"]
[Black "Alexiadis, Hristos"]
[WhiteFideId "4298896"]
[BlackFideId "4249623"]
[WhiteElo "2234"]
[BlackElo "2416"]
[Result "0-1"]
[Round "09"]
[TimeControl "180+1"]
[Date "2022.06.21"]
[WhiteClock "0:00:24"]
[BlackClock "0:00:37"]

1. d4 {[%clk 0:02:57]}  Nf6 {[%clk 0:02:59]} 2. Nf3 {[%clk 0:02:57]}  e6 {[%clk 0:02:58]} 3. c4 {[%clk 0:02:56]}  d5 {[%clk 0:02:47]} 4. Nc3 {[%clk 0:02:55]}  Bb4 {[%clk 0:02:45]} 5. Qa4+ {[%clk 0:02:48]}  Nc6 {[%clk 0:02:45]} 6. Bg5 {[%clk 0:02:48]}  h6 {[%clk 0:02:43]} 7. Bxf6 {[%clk 0:02:36]}  Qxf6 {[%clk 0:02:43]} 8. e3 {[%clk 0:02:34]}  O-O {[%clk 0:02:41]} 9. Rc1 {[%clk 0:02:27]}  Bd7 {[%clk 0:02:31]} 10. Qb3 {[%clk 0:02:08]}  dxc4 {[%clk 0:02:20]} 11. Bxc4 {[%clk 0:02:06]}  Bd6 {[%clk 0:02:07]} 12. Ne4 {[%clk 0:01:54]}  Qg6 {[%clk 0:02:07]} 13. Nxd6 {[%clk 0:01:37]}  Qxg2 {[%clk 0:02:05]} 14. Rg1 {[%clk 0:00:59]}  Qxf3 {[%clk 0:02:03]} 15. Be2 {[%clk 0:00:54]}  Qh3 {[%clk 0:01:55]} 16. Qxb7 {[%clk 0:00:53]}  Qxh2 {[%clk 0:01:50]} 17. Kf1 {[%clk 0:00:50]}  Qxd6 {[%clk 0:01:49]} 18. Bf3 {[%clk 0:00:46]}  Rab8 {[%clk 0:01:44]} 19. Rxc6 {[%clk 0:00:46]}  Bxc6 {[%clk 0:01:33]} 20. Qxc6 {[%clk 0:00:46]}  Qxc6 {[%clk 0:01:30]} 21. Bxc6 {[%clk 0:00:46]}  Rxb2 {[%clk 0:01:29]} 22. Kg2 {[%clk 0:00:47]}  Rxa2 {[%clk 0:01:27]} 23. Rc1 {[%clk 0:00:46]}  Rb8 {[%clk 0:01:18]} 24. Be4 {[%clk 0:00:40]}  Rbb2 {[%clk 0:01:17]} 25. Rxc7 {[%clk 0:00:40]}  Rxf2+ {[%clk 0:01:15]} 26. Kg3 {[%clk 0:00:41]}  g6 {[%clk 0:01:16]} 27. d5 {[%clk 0:00:41]}  exd5 {[%clk 0:01:06]} 28. Bxd5 {[%clk 0:00:40]}  Rad2 {[%clk 0:01:06]} 29. Rxa7 {[%clk 0:00:35]}  Rf6 {[%clk 0:01:06]} 30. e4 {[%clk 0:00:34]}  Kg7 {[%clk 0:01:06]} 31. Rd7 {[%clk 0:00:24]}  Rd3+ {[%clk 0:01:01]} 32. Kg2 {[%clk 0:00:24]}  h5 {[%clk 0:00:43]} 33. e5 {[%clk 0:00:23]}  Rf5 {[%clk 0:00:43]} 34. e6 {[%clk 0:00:24]}  Rdxd5 {[%clk 0:00:38]} 35. e7 {[%clk 0:00:24]}  Rde5 {[%clk 0:00:37]} 0-1


[Site "https://www.chess.com"]

[Event "Titled Tuesday Blitz June 21 Early 2022"]
[White "Lazavik, Denis"]
[Black "Cherniaiev, Tykhon"]
[WhiteFideId "13515110"]
[BlackFideId "14182360"]
[WhiteElo "2437"]
[BlackElo "2289"]
[Result "1-0"]
[Round "09"]
[TimeControl "180+1"]
[Date "2022.06.21"]
[WhiteClock "0:00:06"]
[BlackClock "0:00:02"]

1. d4 {[%clk 0:03:00]}  Nf6 {[%clk 0:02:59]} 2. c4 {[%clk 0:03:01]}  e6 {[%clk 0:03:00]} 3. Nf3 {[%clk 0:03:01]}  d5 {[%clk 0:03:00]} 4. g3 {[%clk 0:03:02]}  Be7 {[%clk 0:03:00]} 5. Bg2 {[%clk 0:03:02]}  O-O {[%clk 0:03:01]} 6. O-O {[%clk 0:03:03]}  dxc4 {[%clk 0:03:01]} 7. Qc2 {[%clk 0:03:03]}  a6 {[%clk 0:03:01]} 8. a4 {[%clk 0:03:04]}  Bd7 {[%clk 0:03:00]} 9. Rd1 {[%clk 0:02:56]}  Bc6 {[%clk 0:02:58]} 10. Bg5 {[%clk 0:02:55]}  b5 {[%clk 0:02:54]} 11. Bxf6 {[%clk 0:02:50]}  Bxf6 {[%clk 0:02:53]} 12. Nc3 {[%clk 0:02:51]}  Nd7 {[%clk 0:02:12]} 13. Ng5 {[%clk 0:02:48]}  Bxg5 {[%clk 0:02:11]} 14. Bxc6 {[%clk 0:02:48]}  Rb8 {[%clk 0:02:11]} 15. axb5 {[%clk 0:02:46]}  axb5 {[%clk 0:02:12]} 16. Bxb5 {[%clk 0:02:46]}  Nb6 {[%clk 0:02:10]} 17. Ne4 {[%clk 0:02:30]}  Be7 {[%clk 0:02:08]} 18. Bc6 {[%clk 0:02:01]}  Nd5 {[%clk 0:02:03]} 19. Qxc4 {[%clk 0:01:45]}  Rxb2 {[%clk 0:02:02]} 20. e3 {[%clk 0:01:44]}  Nf6 {[%clk 0:01:56]} 21. Nc3 {[%clk 0:01:38]}  Ng4 {[%clk 0:01:40]} 22. Ra2 {[%clk 0:01:27]}  Rxa2 {[%clk 0:01:31]} 23. Qxa2 {[%clk 0:01:26]}  Qd6 {[%clk 0:01:28]} 24. Bf3 {[%clk 0:01:25]}  Nf6 {[%clk 0:01:28]} 25. Qc4 {[%clk 0:01:09]}  Rc8 {[%clk 0:00:57]} 26. Nb5 {[%clk 0:01:03]}  Qb6 {[%clk 0:00:56]} 27. Bc6 {[%clk 0:00:53]}  Nd5 {[%clk 0:00:52]} 28. Bxd5 {[%clk 0:00:47]}  exd5 {[%clk 0:00:52]} 29. Qxd5 {[%clk 0:00:47]}  Bf6 {[%clk 0:00:40]} 30. Nc3 {[%clk 0:00:34]}  Rd8 {[%clk 0:00:40]} 31. Qc4 {[%clk 0:00:30]}  c6 {[%clk 0:00:36]} 32. Ne4 {[%clk 0:00:30]}  Be7 {[%clk 0:00:33]} 33. Rc1 {[%clk 0:00:30]}  Rc8 {[%clk 0:00:33]} 34. d5 {[%clk 0:00:29]}  c5 {[%clk 0:00:33]} 35. Rd1 {[%clk 0:00:28]}  Bd6 {[%clk 0:00:32]} 36. Nc3 {[%clk 0:00:27]}  Qb4 {[%clk 0:00:32]} 37. Qa6 {[%clk 0:00:22]}  Rd8 {[%clk 0:00:32]} 38. Nb5 {[%clk 0:00:20]}  Qb3 {[%clk 0:00:29]} 39. Rc1 {[%clk 0:00:05]}  Qxd5 {[%clk 0:00:26]} 40. Nxd6 {[%clk 0:00:05]}  Qxd6 {[%clk 0:00:23]} 41. Qxd6 {[%clk 0:00:05]}  Rxd6 {[%clk 0:00:24]} 42. Rxc5 {[%clk 0:00:06]}  g6 {[%clk 0:00:25]} 43. g4 {[%clk 0:00:06]}  Kg7 {[%clk 0:00:25]} 44. Kg2 {[%clk 0:00:06]}  Rd2 {[%clk 0:00:26]} 45. h4 {[%clk 0:00:07]}  Ra2 {[%clk 0:00:25]} 46. Kg3 {[%clk 0:00:07]}  Ra1 {[%clk 0:00:23]} 47. h5 {[%clk 0:00:07]}  Ra2 {[%clk 0:00:19]} 48. f3 {[%clk 0:00:04]}  Ra3 {[%clk 0:00:19]} 49. e4 {[%clk 0:00:05]}  Rb3 {[%clk 0:00:19]} 50. Kf4 {[%clk 0:00:05]}  Ra3 {[%clk 0:00:10]} 51. Rc1 {[%clk 0:00:05]}  Ra5 {[%clk 0:00:07]} 52. Rh1 {[%clk 0:00:04]}  Ra3 {[%clk 0:00:06]} 53. h6+ {[%clk 0:00:04]}  Kf6 {[%clk 0:00:06]} 54. g5+ {[%clk 0:00:04]}  Ke6 {[%clk 0:00:07]} 55. Rb1 {[%clk 0:00:05]}  f6 {[%clk 0:00:06]} 56. Rb6+ {[%clk 0:00:05]}  Ke7 {[%clk 0:00:06]} 57. Rxf6 {[%clk 0:00:05]}  Ra1 {[%clk 0:00:06]} 58. Rb6 {[%clk 0:00:06]}  Kf7 {[%clk 0:00:06]} 59. Rb7+ {[%clk 0:00:06]}  Kg8 {[%clk 0:00:07]} 60. Rd7 {[%clk 0:00:06]}  Ra5 {[%clk 0:00:07]} 61. Rd5 {[%clk 0:00:06]}  Ra4 {[%clk 0:00:08]} 62. Ke5 {[%clk 0:00:06]}  Ra3 {[%clk 0:00:08]} 63. f4 {[%clk 0:00:06]}  Ra8 {[%clk 0:00:08]} 64. Rd6 {[%clk 0:00:06]}  Ra5+ {[%clk 0:00:08]} 65. Kf6 {[%clk 0:00:06]}  Ra8 {[%clk 0:00:07]} 66. f5 {[%clk 0:00:06]}  gxf5 {[%clk 0:00:07]} 67. exf5 {[%clk 0:00:06]}  Rf8+ {[%clk 0:00:07]} 68. Ke5 {[%clk 0:00:07]}  Re8+ {[%clk 0:00:07]} 69. Kf4 {[%clk 0:00:07]}  Ra8 {[%clk 0:00:08]} 70. Rd4 {[%clk 0:00:07]}  Kf7 {[%clk 0:00:08]} 71. Rd7+ {[%clk 0:00:06]}  Kg8 {[%clk 0:00:08]} 72. g6 {[%clk 0:00:05]}  hxg6 {[%clk 0:00:09]} 73. fxg6 {[%clk 0:00:06]}  Rb8 {[%clk 0:00:05]} 74. Re7 {[%clk 0:00:05]}  Rc8 {[%clk 0:00:02]} 75. Kg5 {[%clk 0:00:05]}  Rb8 {[%clk 0:00:02]} 76. h7+ {[%clk 0:00:05]}  Kh8 {[%clk 0:00:02]} 77. Kh6 {[%clk 0:00:06]}  Rb6 {[%clk 0:00:02]} 78. Re8# {[%clk 0:00:06]} 1-0


[Site "https://www.chess.com"]

[Event "Titled Tuesday Blitz June 21 Early 2022"]
[White "Navara, David"]
[Black "Paravyan, David"]
[WhiteFideId "309095"]
[BlackFideId "4194985"]
[WhiteElo "2686"]
[BlackElo "2569"]
[Result "1-0"]
[Round "09"]
[TimeControl "180+1"]
[Date "2022.06.21"]
[WhiteClock "0:01:30"]
[BlackClock "0:00:01"]

1. d4 {[%clk 0:03:00]}  Nf6 {[%clk 0:02:59]} 2. c4 {[%clk 0:03:01]}  g6 {[%clk 0:02:59]} 3. Nc3 {[%clk 0:03:01]}  d5 {[%clk 0:03:00]} 4. cxd5 {[%clk 0:03:02]}  Nxd5 {[%clk 0:03:01]} 5. e4 {[%clk 0:03:03]}  Nxc3 {[%clk 0:03:01]} 6. bxc3 {[%clk 0:03:03]}  Bg7 {[%clk 0:03:01]} 7. Bc4 {[%clk 0:03:04]}  c5 {[%clk 0:03:01]} 8. Ne2 {[%clk 0:03:04]}  O-O {[%clk 0:03:01]} 9. O-O {[%clk 0:03:04]}  Nc6 {[%clk 0:03:01]} 10. Be3 {[%clk 0:03:04]}  Bg4 {[%clk 0:03:01]} 11. f3 {[%clk 0:03:04]}  Na5 {[%clk 0:03:00]} 12. Bxf7+ {[%clk 0:03:04]}  Rxf7 {[%clk 0:03:01]} 13. fxg4 {[%clk 0:03:05]}  Rxf1+ {[%clk 0:02:58]} 14. Kxf1 {[%clk 0:03:06]}  Qd6 {[%clk 0:02:58]} 15. e5 {[%clk 0:02:54]}  Nc4 {[%clk 0:02:57]} 16. Bf4 {[%clk 0:02:35]}  Qd5 {[%clk 0:02:39]} 17. Kg1 {[%clk 0:02:33]}  Qe4 {[%clk 0:02:30]} 18. Qf1 {[%clk 0:02:16]}  cxd4 {[%clk 0:01:57]} 19. cxd4 {[%clk 0:02:17]}  Rd8 {[%clk 0:01:56]} 20. Qf3 {[%clk 0:02:13]}  Rxd4 {[%clk 0:01:38]} 21. Rc1 {[%clk 0:02:07]}  Nd2 {[%clk 0:00:26]} 22. Rc8+ {[%clk 0:01:29]}  Kf7 {[%clk 0:00:23]} 23. Qf2 {[%clk 0:01:30]}  Qb1+ {[%clk 0:00:03]} 24. Rc1 {[%clk 0:01:29]}  Qxc1+ {[%clk 0:00:01]} 25. Nxc1 {[%clk 0:01:30]} 1-0


[Site "https://www.chess.com"]

[Event "Titled Tuesday Blitz June 21 Early 2022"]
[White "Prokofiev, Valentyn"]
[Black "Bryakin, Mikhail"]
[WhiteFideId "14160161"]
[BlackFideId "4165314"]
[WhiteElo "2142"]
[BlackElo "2417"]
[Result "0-1"]
[Round "09"]
[TimeControl "180+1"]
[Date "2022.06.21"]
[WhiteClock "0:00:05"]
[BlackClock "0:00:52"]

1. d4 {[%clk 0:03:00]}  Nf6 {[%clk 0:02:40]} 2. c4 {[%clk 0:03:00]}  c5 {[%clk 0:02:34]} 3. d5 {[%clk 0:03:00]}  b5 {[%clk 0:02:35]} 4. cxb5 {[%clk 0:03:01]}  a6 {[%clk 0:02:34]} 5. bxa6 {[%clk 0:03:01]}  d6 {[%clk 0:02:33]} 6. Nc3 {[%clk 0:03:01]}  g6 {[%clk 0:02:33]} 7. g3 {[%clk 0:02:46]}  Bg7 {[%clk 0:02:32]} 8. Bg2 {[%clk 0:02:47]}  O-O {[%clk 0:02:27]} 9. Nf3 {[%clk 0:02:47]}  Bxa6 {[%clk 0:02:23]} 10. O-O {[%clk 0:02:47]}  Nbd7 {[%clk 0:02:21]} 11. Rb1 {[%clk 0:02:46]}  Ng4 {[%clk 0:02:11]} 12. Qc2 {[%clk 0:02:35]}  Qb6 {[%clk 0:02:04]} 13. h3 {[%clk 0:02:29]}  Nge5 {[%clk 0:02:03]} 14. Nxe5 {[%clk 0:02:30]}  Nxe5 {[%clk 0:02:04]} 15. b3 {[%clk 0:02:30]}  Rfb8 {[%clk 0:02:03]} 16. Bg5 {[%clk 0:02:28]}  Ra7 {[%clk 0:01:56]} 17. Be3 {[%clk 0:02:23]}  Qb4 {[%clk 0:01:54]} 18. Bd2 {[%clk 0:02:09]}  Qa3 {[%clk 0:01:38]} 19. Bc1 {[%clk 0:02:09]}  Qb4 {[%clk 0:01:37]} 20. Bd2 {[%clk 0:02:09]}  Qa3 {[%clk 0:01:38]} 21. Bc1 {[%clk 0:02:09]}  Qa5 {[%clk 0:01:38]} 22. Bd2 {[%clk 0:02:09]}  Qd8 {[%clk 0:01:35]} 23. Rfc1 {[%clk 0:02:04]}  h5 {[%clk 0:01:32]} 24. e4 {[%clk 0:01:50]}  Bd3 {[%clk 0:01:29]} 25. Qd1 {[%clk 0:01:48]}  Bxb1 {[%clk 0:01:29]} 26. Rxb1 {[%clk 0:01:49]}  c4 {[%clk 0:01:26]} 27. b4 {[%clk 0:01:39]}  Ra3 {[%clk 0:01:23]} 28. Qc1 {[%clk 0:01:33]}  Rba8 {[%clk 0:01:22]} 29. b5 {[%clk 0:01:29]}  Nd3 {[%clk 0:01:21]} 30. Qc2 {[%clk 0:01:25]}  Qb6 {[%clk 0:01:21]} 31. Be3 {[%clk 0:01:14]}  Bd4 {[%clk 0:01:22]} 32. Nd1 {[%clk 0:00:58]}  Rxa2 {[%clk 0:01:19]} 33. Qxc4 {[%clk 0:00:57]}  Bxe3 {[%clk 0:01:18]} 34. Nxe3 {[%clk 0:00:50]}  Nxf2 {[%clk 0:01:15]} 35. Re1 {[%clk 0:00:40]}  R8a3 {[%clk 0:00:56]} 36. Qc6 {[%clk 0:00:17]}  Qd4 {[%clk 0:00:56]} 37. b6 {[%clk 0:00:04]}  Rxe3 {[%clk 0:00:55]} 38. b7 {[%clk 0:00:02]}  Rxe1+ {[%clk 0:00:55]} 39. Kh2 {[%clk 0:00:02]}  Ng4+ {[%clk 0:00:55]} 40. hxg4 {[%clk 0:00:03]}  Qg1+ {[%clk 0:00:55]} 41. Kh3 {[%clk 0:00:03]}  Qxg2+ {[%clk 0:00:55]} 42. Kh4 {[%clk 0:00:04]}  Rh1+ {[%clk 0:00:52]} 43. Kg5 {[%clk 0:00:05]}  Qd2# {[%clk 0:00:52]} 0-1


[Site "https://www.chess.com"]